{"text_format":"1","workbook":"xlsx","n_sheets":6,"sheets":["Delivery Plan","Lookups","Guide","Summary","GenPreAcc Worksheet","Digital Worksheet"],"not_rendered":{"charts":0,"images":0,"macros":1,"external_links":1,"defined_names":11,"comments":0,"pivot_tables":9},"unopened":[],"bounds":{"document_bytes":16777216,"sheet_cells":100000,"rows_first":2000,"rows_last":500,"rows_between":2000,"halvings":0,"cell_chars":16384,"cell_head_chars":4096},"cells_cut":0,"cells_raw":0,"read":"whole","date_system":"1900"}

{"sheet":"Delivery Plan","index":0,"n_rows":268,"n_cols":39,"rows_kept":268,"cut":false,"hidden":true,"merged":[]}
["TOID","Name","ABNName","DETRegion","ACFERegion","DETRegionShort","ACFERegionShort","TOID2","LL_Unique_ID",null,"DETRegion","(All)","DETRegion","Statewide","DETRegion","Cross Regional","DETRegion","North Eastern Victoria","DETRegion","North Western Victoria","DETRegion","South Eastern Victoria","DETRegion","South Western Victoria",null,null,null,null,null,null,null,null,null,null,null,null,null,null,{"$f":"VLOOKUP(nName,Tbl_DETRegion[],2,FALSE)","v":{"$error":"#N/A"}}]
[590,"AMES Australia","AMES Australia","Statewide","Statewide","STATEWIDE","STATEWIDE",590,"005",null,null,null,null,null,null,null,null,null,null,null,null,null,null,null,null,null,null,null,null,null,null,null,null,null,null,null,null,"DET Region","Column1"]
[3621,"BRACE Education Training & Employment","BRACE Education Training & Employment Limited","South Eastern Victoria","Southern Metropolitan","SEV","SMR",3621,"032",null,"Select Name*",null,"Select Name*",null,"Select Name*",null,"Select Name*",null,"Select Name*",null,"Select Name*",null,"Select Name*",null,null,null,null,null,null,null,null,null,null,null,null,null,null,"Select Region*",1]
[3622,"Ballarat Neighbourhood Centre","Ballarat Neighbourhood Centre Inc","South Western Victoria","Grampians","SWV","GRA",3622,"018",null,"Access Australia Group",null,"AMES Australia",null,"Access Australia Group",null,"Alamein Neighbourhood & Learning Centre",null,"Banksia Gardens Association",null,"Art Resource Collective",null,"Anglesea Community House",null,null,null,null,null,null,null,null,null,null,null,null,null,null,"Statewide",3]
[3628,"Belvedere Community Centre","Belvedere Community Centre Inc","South Eastern Victoria","Southern Metropolitan","SEV","SMR",3628,"025",null,"Alamein Neighbourhood & Learning Centre",null,"Centre for Adult Education",null,"Australian Croatian Community Services",null,"Albury Wodonga Community College",null,"Belgium Avenue Neighbourhood House",null,"Belvedere Community Centre",null,"Angliss Neighbourhood House",null,null,null,null,null,null,null,null,null,null,null,null,null,null,"Cross Regional",5]
[3652,"Workforce Plus","Workforce Plus Inc.","South Eastern Victoria","Gippsland","SEV","GIPP",3652,"265",null,"Albury Wodonga Community College",null,null,null,"Australian Vietnamese Women's Assoc.",null,"Albury Wodonga Volunteer Resource Bureau",null,"Bendigo Neighbourhood Hub",null,"Berry Street Victoria",null,"Ararat Neighbourhood House",null,null,null,null,null,null,null,null,null,null,null,null,null,null,"North Eastern Victoria",7]
[3671,"Carringbush Adult Education","Carringbush Adult Education Inc","North Western Victoria","North West Metropolitan","NWV","NWM",3671,"038",null,"Albury Wodonga Volunteer Resource Bureau",null,null,null,"Brotherhood of St Laurence",null,"Arrabri Community House",null,"Boort Resource and Info Centre",null,"Bnym Aboriginal Corporation",null,"Aust. Multicultural Community Services",null,null,null,null,null,null,null,null,null,null,null,null,null,null,"North Western Victoria",9]
[3683,"Central Highlands Group Training","Central Highlands Group Training Inc","South Western Victoria","Grampians","SWV","GRA",3683,"040",null,"AMES Australia",null,null,null,"Carlton Neighbourhood Learning Centre",null,"Avenue Neighbourhood House at Eley",null,"Brunswick Neighbourhood House Co-Op",null,"BRACE Education Training & Employment",null,"Australian Romanian Comm Welfare",null,null,null,null,null,null,null,null,null,null,null,null,null,null,"South Eastern Victoria",11]
[3686,"CERES","CERES Inc","North Western Victoria","North West Metropolitan","NWV","NWM",3686,"044",null,"Anglesea Community House",null,null,null,"Child & Family Care Network",null,"Birallee Park Neighbourhood House",null,"Carringbush Adult Education",null,"Cheltenham Community Centre",null,"Balance Training Services",null,null,null,null,null,null,null,null,null,null,null,null,null,null,"South Western Victoria",13]
[3693,"Longbeach Place","Longbeach Place Inc","South Eastern Victoria","Southern Metropolitan","SEV","SMR",3693,"134",null,"Angliss Neighbourhood House",null,null,null,"Concern Australia Welfare",null,"Central Ringwood Community Centre",null,"Castlemaine Community House",null,"Churchill Neighbourhood Centre",null,"Ballarat Neighbourhood Centre"]
[3695,"Child & Family Care Network","Child and Family Care Network Inc","Cross Regional","Eastern Metropolitan","NEV","EMR",3695,"046",null,"Ararat Neighbourhood House",null,null,null,"Inner Melbourne VET Cluster",null,"CIRE Services",null,"CERES",null,"Community College Gippsland",null,"Beaufort Community House & Learning Ctr"]
[3708,"Cobram Community House","Cobram Community House Inc","North Eastern Victoria","Hume","NEV","HUME",3708,"052",null,"Arrabri Community House",null,null,null,"Jesuit Social Services",null,"Clota Cottage Neighbourhood House",null,"Christie Centre",null,"Corinella & District Community Centre",null,"Bellarine Living & Learning Centre"]
[3720,"Bass Coast Adult Learning","Bass Coast Adult Learning Inc","South Eastern Victoria","Gippsland","SEV","GIPP",3720,"020",null,"Art Resource Collective",null,null,null,"JobCo Employment Services",null,"Cobram Community House",null,"Craigieburn Education & Community Centre",null,"Cranbourne Community House",null,"Bellarine Training & Comm Hub"]
[3730,"Continuing Education & Arts Centre of Alexandra","Continuing Education and Arts Centre of Alexandra Inc","North Eastern Victoria","Hume","NEV","HUME",3730,"058",null,"Aust. Multicultural Community Services",null,null,null,"Karingal St Laurence",null,"Coonara Community House",null,"Dallas Neighbourhood House",null,"Dandenong Neighbourhood House",null,"Beulah Historical, Learning & Prog. Assoc."]
[3732,"Albury Wodonga Community College","Albury Wodonga Community College Limited","North Eastern Victoria","Hume","NEV","HUME",3732,"003",null,"Australian Croatian Community Services",null,null,null,"Micare",null,"Corryong Neighbourhood House",null,"Diamond Valley Learning Centre",null,"Dingley Village Neighbourhood Centre",null,"Central Highlands Group Training"]
[3733,"Coonara Community House","Coonara Community House Inc","North Eastern Victoria","Eastern Metropolitan","NEV","EMR",3733,"059",null,"Australian Romanian Comm Welfare",null,null,null,"Preston/Reservoir Adult Community Ed.",null,"Euroa Health",null,"Donald Learning Group",null,"Doveton Neighbourhood Learning Centre",null,"Centre for Participation"]
[3740,"Craigieburn Education & Community Centre","Craigieburn Education and Community Centre Inc","North Western Victoria","North West Metropolitan","NWV","NWM",3740,"062",null,"Australian Vietnamese Women's Assoc.",null,null,null,null,null,"Glen Park Community Centre",null,"East End Community House",null,"Elwood-St Kilda Neighbourhood Learning Ctr",null,"Cloverdale Community Centre"]
[3751,"Daylesford Neighbourhood Centre","Daylesford Neighbourhood Centre Inc","South Western Victoria","Grampians","SWV","GRA",3751,"066",null,"Avenue Neighbourhood House at Eley",null,null,null,null,null,"Healesville Living & Learning Centre",null,"Echuca Neighbourhood House",null,"Emerald Community House",null,"Comm Unity Plus Services"]
[3755,"Comm Unity Plus Services","Comm Unity Plus Services Ltd","South Western Victoria","North West Metropolitan","SWV","NWM",3755,"054",null,"Balance Training Services",null,null,null,null,null,"Japara Neighbourhood House",null,"Fitzroy Learning Network",null,"Endeavour Hills Neighbourhood Centre",null,"Community Hub"]
[3769,"Diamond Valley Learning Centre","Diamond Valley Learning Centre Inc.","North Western Victoria","North West Metropolitan","NWV","NWM",3769,"067",null,"Ballarat Neighbourhood Centre",null,null,null,null,null,"Kerrie Neighbourhood House",null,"Glenroy Neighbourhood Learning Centre",null,"Frankston City Council",null,"Daylesford Neighbourhood Centre"]
[3771,"Djerriwarrh Employment & Ed. Services","Djerriwarrh Employment & Education Services Inc","South Western Victoria","North West Metropolitan","SWV","NWM",3771,"069",null,"Banksia Gardens Association",null,null,null,null,null,"Kew Neighbourhood Learning Centre",null,"Goldfields Employment & Learning Centre",null,"Gippsland Employment Skills Training",null,"Djerriwarrh Employment & Ed. Services"]
[3774,"Pines Learning","Pines Learning Inc","North Eastern Victoria","Eastern Metropolitan","NEV","EMR",3774,"185",null,"Beaufort Community House & Learning Ctr",null,null,null,null,null,"King Valley Learning Exchange",null,"Holden Street Neighbourhood House",null,"Glen Eira Adult Learning Centre",null,"Duke Street Community House Association"]
[3776,"Murray Adult Community Education","Murray Adult Community Education – Swan Hill Inc","North Western Victoria","Loddon Mallee","NWV","LMR",3776,"160",null,"Belgium Avenue Neighbourhood House",null,null,null,null,null,"Kinglake Ranges Neighbourhood House",null,"Hume City Council",null,"Godfrey Street Community House",null,"Encompass Community Services"]
[3779,"Duke Street Community House Association","Duke Street Community House Association Inc","South Western Victoria","North West Metropolitan","SWV","NWM",3779,"072",null,"Bellarine Living & Learning Centre",null,null,null,null,null,"KYM (Victoria)",null,"Jika Jika Community Centre",null,"Hallam Community Learning Centre",null,"Farnham Street N/hood Learning Centre"]
[3811,"Fitzroy Learning Network","Fitzroy Learning Network Inc","North Western Victoria","North West Metropolitan","NWV","NWM",3811,"081",null,"Bellarine Training & Comm Hub",null,null,null,null,null,"Link Health & Community",null,"Kangaroo Flat Community Group",null,"Hampton Community Centre",null,"Footscray Community Arts Centre"]
[3818,"Olympic Adult Education","Olympic Adult Education Inc.","North Western Victoria","North West Metropolitan","NWV","NWM",3818,"174",null,"Belvedere Community Centre",null,null,null,null,null,"Living & Learning at Ajani",null,"Kerang & District Community Centre",null,"Hampton Park Care Group",null,"Foundation 61"]
[3828,"Gippsland Employment Skills Training","Gippsland Employment Skills Training Inc.","South Eastern Victoria","Gippsland","SEV","GIPP",3828,"088",null,"Bendigo Neighbourhood Hub",null,null,null,null,null,"Mansfield Adult Continuing Education",null,"Kyabram Community & Learning Centre",null,"Heyfield Community Resource Centre",null,"Gateway Social Support Options"]
[3831,"Glenroy Neighbourhood Learning Centre","Glenroy Neighbourhood Learning Centre Inc","North Western Victoria","North West Metropolitan","NWV","NWM",3831,"091",null,"Berry Street Victoria",null,null,null,null,null,"Mitcham Community House",null,"Kyneton Community & Learning Centre",null,"Inclusion Melbourne",null,"Geelong Ethnic Communities Council"]
[3834,"Vic. Vocational Rehabilitation Assoc","Victorian Vocational Rehabilitation Association","North Western Victoria","North West Metropolitan","NWV","NWM",3834,"249",null,"Beulah Historical, Learning & Prog. Assoc.",null,null,null,null,null,"Mount Beauty Neighbourhood Centre",null,"Lalor Living & Learning Centre",null,"Jewish Care (Victoria)",null,"Grampians Community Health "]
[3888,"Kensington Neighbourhood House","Kensington Neighbourhood House Inc","South Western Victoria","North West Metropolitan","SWV","NWM",3888,"115",null,"Birallee Park Neighbourhood House",null,null,null,null,null,"Mountain District Women's Co-operative",null,"Loddon Campaspe Multicultural Services",null,"Langwarrin Community Centre",null,"Great Ocean Road Health"]
[3890,"Resurrection Catholic Church Keysborough","Resurrection Catholic Church Keysborough","South Eastern Victoria","Southern Metropolitan","SEV","SMR",3890,"197",null,"Bnym Aboriginal Corporation",null,null,null,null,null,"Myrtleford Neighbourhood Centre",null,"Macedon Ranges Further Education Centre",null,"Living Learning Pakenham",null,"Haddon Community Learning Centre"]
[3897,"Kyabram Community & Learning Centre","Kyabram Community and Learning Centre Inc","North Western Victoria","Loddon Mallee","NWV","LMR",3897,"121",null,"Boort Resource and Info Centre",null,null,null,null,null,"N/Shepparton Community & Learning Centre",null,"MADEC Australia",null,"Longbeach Place",null,"Horsham Community House"]
[3913,"Living Learning Pakenham","Living Learning Pakenham Inc.","South Eastern Victoria","Southern Metropolitan","SEV","SMR",3913,"132",null,"BRACE Education Training & Employment",null,null,null,null,null,"North Ringwood Community House",null,"Maldon Neighbourhood Centre",null,"Lyrebird Community Centre",null,"Kensington Neighbourhood House"]
[3920,"Macedon Ranges Further Education Centre","Macedon Ranges Further Education Centre Inc.","North Western Victoria","Loddon Mallee","NWV","LMR",3920,"137",null,"Brotherhood of St Laurence",null,null,null,null,null,"Numurkah Community Learning Centre",null,"Meadow Heights Learning Shop",null,"Mallacoota District Health & Support Ser",null,"Lara Community Centre"]
[3928,"Mansfield Adult Continuing Education","MACE Inc.","North Eastern Victoria","Hume","NEV","HUME",3928,"136",null,"Brunswick Neighbourhood House Co-Op",null,null,null,null,null,"Open Door Neighbourhood House",null,"Mill Park Community Services Group",null,"Manna Gum Community House",null,"Laverton Community Integrated Services"]
[3940,"Meadow Heights Learning Shop","Meadow Heights Learning Shop Inc","North Western Victoria","North West Metropolitan","NWV","NWM",3940,"142",null,"Carlton Neighbourhood Learning Centre",null,null,null,null,null,"Orana Neighbourhood House",null,"Murray Adult Community Education",null,"Melbourne City Mission",null,"LINK Neighbourhood House"]
[3952,"Merinda Park Learning & Community Centre","Merinda Park Learning and Community Centre Inc.","South Eastern Victoria","Southern Metropolitan","SEV","SMR",3952,"146",null,"Carringbush Adult Education",null,null,null,null,null,"Pangerang Community House",null,"Murray Human Services",null,"Merinda Park Learning & Community Centre",null,"Melton South Community Centre"]
[3957,"MADEC Australia","MADEC Australia","North Western Victoria","Loddon Mallee","NWV","LMR",3957,"138",null,"Castlemaine Community House",null,null,null,null,null,"Park Orchards Comm House",null,"N/Carlton Railway Station N/hood House",null,"MiLife-Victoria",null,"Meredith Community Centre"]
[3969,"Mountain District Women's Co-operative","Mountain District Women's Co-operative Limited","North Eastern Victoria","Eastern Metropolitan","NEV","EMR",3969,"159",null,"Central Highlands Group Training",null,null,null,null,null,"Pines Learning",null,"Nillumbik Shire Council",null,"Milpara Community House",null,"Migrant Resource Centre, NW Region"]
[3970,"Mount Eliza Neighbourhood House","Mount Eliza Neighbourhood House Inc","South Eastern Victoria","Southern Metropolitan","SEV","SMR",3970,"158",null,"Central Ringwood Community Centre",null,null,null,null,null,"Rejoice Christian Chinese Communication Centre",null,"Olympic Adult Education",null,"Moe Neighbourhood House",null,"Nhill Neighbourhood House Learning Ctr"]
[3977,"Foundation Learning Centre","Foundation Learning Centre Inc","South Eastern Victoria","Southern Metropolitan","SEV","SMR",3977,"163",null,"Centre for Adult Education",null,null,null,null,null,"Rowville Neighbourhood Learning Centre",null,"Preston Neighbourhood House",null,"Moongala Women's Collective",null,"North Melbourne Language & Learning"]
[3989,"Nillumbik Shire Council","Nillumbik Shire Council","North Western Victoria","North West Metropolitan","NWV","NWM",3989,"166",null,"Centre for Participation",null,null,null,null,null,"Selby Community House",null,"Pyramid Hill Neighbourhood House",null,"Mordialloc Neighbourhood House",null,"Outlets Co-operative Neighbourhood House"]
[3993,"N/Shepparton Community & Learning Centre","North Shepparton Community & Learning Centre Inc","North Eastern Victoria","Hume","NEV","HUME",3993,"171",null,"CERES",null,null,null,null,null,"Shepparton Access",null,"Red Cliffs Community Resource Centre",null,"Mount Eliza Neighbourhood House",null,"Port Fairy Community Group"]
[4008,"Park Orchards Comm House","Park Orchards Community House &  Learning Centre Inc","North Eastern Victoria","Eastern Metropolitan","NEV","EMR",4008,"181",null,"Cheltenham Community Centre",null,null,null,null,null,"Shepparton ACE Secondary College",null,"Richmond Community Learning Centre",null,"Ngwala Willumbong",null,"Portland Workskills"]
[4016,"Peninsula Training & Employment Program","Peninsula Training and Employment Program Inc","South Eastern Victoria","Southern Metropolitan","SEV","SMR",4016,"183",null,"Child & Family Care Network",null,null,null,null,null,"South Shepparton Community Centre",null,"Robinson Reserve Neighbourhood House",null,"Noble Park Community Centre",null,"Quantin Binnah Community Centre"]
[4030,"Portland Workskills","Portland Workskills Inc","South Western Victoria","Barwon South West","SWV","BSW",4030,"188",null,"Christie Centre",null,null,null,null,null,"Tatura Community House",null,"Robinvale Network House",null,"Noweyung",null,"Rosewall Neighbourhood Centre"]
[4036,"Preston/Reservoir Adult Community Ed.","PRACE Inc","Cross Regional","North West Metropolitan","NWV","NWM",4036,"191",null,"Churchill Neighbourhood Centre",null,null,null,null,null,"The Basin Community House",null,"Rushworth Community House",null,"Orbost Education Centre",null,"Rural Industries Skill Training Centre"]
[4069,"Sandybeach Community Co-op Society","Sandybeach Community Co-operative Society Limited","South Eastern Victoria","Southern Metropolitan","SEV","SMR",4069,"207",null,"CIRE Services",null,null,null,null,null,"The Centre for Continuing Education",null,"Span Community House",null,"Outlook (VIC)",null,"SCAA Shearer Woolhandler Training"]
[4075,"Selby Community House","Selby Community House Inc","North Eastern Victoria","Eastern Metropolitan","NEV","EMR",4075,"209",null,"Clota Cottage Neighbourhood House",null,null,null,null,null,"The Kevin Heinze Garden Centre",null,"Sunraysia Mallee Ethnic Comm. Council",null,"Paynesville Neighbourhood Centre",null,"Simpson & District Community Centre"]
[4098,"Springvale Neighbourhood House","Springvale Neighbourhood House Inc","South Eastern Victoria","Southern Metropolitan","SEV","SMR",4098,"222",null,"Cloverdale Community Centre",null,null,null,null,null,"The Onemda Association",null,"Sunraysia Regional Consulting",null,"Peninsula Training & Employment Program",null,"Southern Grampians Adult Education"]
[4149,"Upper Beaconsfield Community Centre","Upper Beaconsfield Community Centre","South Eastern Victoria","Southern Metropolitan","SEV","SMR",4149,"244",null,"Cobram Community House",null,null,null,null,null,"Trudewind Road Neighbourhood House",null,"Sussex Neighbourhood House",null,"Phillip Island Community & Learning Ctr",null,"Springdale Neighbourhood Centre"]
[4150,"CIRE Services","CIRE Services Incorporated","North Eastern Victoria","Eastern Metropolitan","NEV","EMR",4150,"049",null,"Comm Unity Plus Services",null,null,null,null,null,"Vermont South Community House",null,"Vic. Aboriginal Community Services Assoc",null,"Port Phillip Community Group",null,"St. Arnaud Neighbourhood House"]
[4172,"The Centre for Continuing Education","The Centre for Continuing Education Inc","North Eastern Victoria","Hume","NEV","HUME",4172,"232",null,"Community College Gippsland",null,null,null,null,null,"Waminda",null,"Vic. Vocational Rehabilitation Assoc",null,"Prahran Community Learning Centre",null,"Stawell Neighbourhood House"]
[4179,"Wyndham Community & Education Centre","Wyndham Community and Education Centre Inc","South Western Victoria","North West Metropolitan","SWV","NWM",4179,"267",null,"Community Hub",null,null,null,null,null,"Warrandyte Neighbourhood House",null,"VICSEG New Futures",null,"Quantum Support Services",null,"The Centre: Connecting Community in NW-M"]
[4181,"Community College Gippsland","Community College Gippsland Limited","South Eastern Victoria","Gippsland","SEV","GIPP",4181,"055",null,"Concern Australia Welfare",null,null,null,null,null,"Waverley Community Learning Centre",null,"Wedderburn Community House",null,"Resurrection Catholic Church Keysborough",null,"The Old Courthouse Committee of Mgt"]
[4185,"Westgate Community Initiatives Group","Westgate Community Initiatives Group Inc","South Western Victoria","North West Metropolitan","SWV","NWM",4185,"258",null,"Coonara Community House",null,null,null,null,null,"Wonga Park Community Cottage",null,"Whittlesea Community Connections",null,"S/vale Indo-Chinese Mutual Assist. Assoc",null,"The South Kingsville Community Centre"]
[4198,"Rural Industries Skill Training Centre","Rural Industries Skill Training Centre Inc","South Western Victoria","Barwon South West","SWV","BSW",4198,"204",null,"Corinella & District Community Centre",null,null,null,null,null,"Yarrawonga Neighbourhood House",null,"Whittlesea Community House",null,"Sale Neighbourhood House",null,"Victorian Deaf Society"]
[4207,"Yarraville Community Centre","Yarraville Community Centre Inc","South Western Victoria","North West Metropolitan","SWV","NWM",4207,"268",null,"Corryong Neighbourhood House",null,null,null,null,null,"Yarrunga Community Centre",null,"Wycheproof Community Resource Centre",null,"Sandybeach Community Co-op Society",null,"Warracknabeal Neighbourhood House"]
[4577,"SCAA Shearer Woolhandler Training","SCAA Shearer Woolhandler Training Inc","South Western Victoria","Barwon South West","SWV","BSW",4577,"208",null,"Craigieburn Education & Community Centre",null,null,null,null,null,"Continuing Education & Arts Centre of Alexandra",null,"Youth Projects",null,"Sorrento Community Centre",null,"Wendouree Neighbourhood Centre"]
[4603,"Access Australia Group","Access Australia Group Limited","Cross Regional","Loddon Mallee","NWV","LMR",4603,"001",null,"Cranbourne Community House",null,null,null,null,null,null,null,"Zoe Support Australia",null,"Southern Migrant & Refugee Centre",null,"Westgate Community Initiatives Group"]
[4640,"Williamstown Community & Education Ctr","Williamstown Community and Education Centre Inc","South Western Victoria","North West Metropolitan","SWV","NWM",4640,"261",null,"Dallas Neighbourhood House",null,null,null,null,null,null,null,"Bubup Wilam for Early Learning",null,"Southport Community Centre",null,"Williamstown Community & Education Ctr"]
[5064,"Laurels Education and Training","Laurels Education and Training Inc.","South Western Victoria","Grampians","SWV","GRA",5064,"126",null,"Dandenong Neighbourhood House",null,null,null,null,null,null,null,null,null,"Springvale Learning & Activities Centre",null,"Winchelsea Community House"]
[5076,"Concern Australia Welfare","Concern Australia Welfare Inc","Cross Regional","Southern Metropolitan","SEV","SMR",5076,"057",null,"Daylesford Neighbourhood Centre",null,null,null,null,null,null,null,null,null,"Springvale Neighbourhood House",null,"Wingate Avenue Community Centre"]
[5526,"Brunswick Neighbourhood House Co-Op","Brunswick Neighbourhood House Co-Operative Limited","North Western Victoria","North West Metropolitan","NWV","NWM",5526,"034",null,"Diamond Valley Learning Centre",null,null,null,null,null,null,null,null,null,"Task Force Community Agency",null,"Wyndham Community & Education Centre"]
[5551,"Dallas Neighbourhood House","Dallas Neighbourhood House Inc","North Western Victoria","North West Metropolitan","NWV","NWM",5551,"064",null,"Dingley Village Neighbourhood Centre",null,null,null,null,null,null,null,null,null,"Traralgon Neighbourhood Learning House",null,"Yarraville Community Centre"]
[5553,"Karingal St Laurence","Karingal St Laurence Limited","Cross Regional","Barwon South West","SWV","BSW",5553,"114",null,"Djerriwarrh Employment & Ed. Services",null,null,null,null,null,null,null,null,null,"Uniting (Victoria & Tasmania)",null,"YouthNow"]
[5818,"Task Force Community Agency","Task Force Community Agency Inc","South Eastern Victoria","Southern Metropolitan","SEV","SMR",5818,"229",null,"Donald Learning Group",null,null,null,null,null,null,null,null,null,"Upper Beaconsfield Community Centre",null,"Laurels Education and Training"]
[5819,"Geelong Ethnic Communities Council","Geelong Ethnic Communities Council Incorporated","South Western Victoria","Barwon South West","SWV","BSW",5819,"087",null,"Doveton Neighbourhood Learning Centre",null,null,null,null,null,null,null,null,null,"Warragul Community House",null,"Ballan & District Community House & Adult Education Centre"]
[6325,"KYM (Victoria)","K.Y.M. (Victoria) Incorporated","North Eastern Victoria","Eastern Metropolitan","NEV","EMR",6325,"112",null,"Duke Street Community House Association",null,null,null,null,null,null,null,null,null,"Wellsprings For Women"]
[6377,"Anglesea Community House","Anglesea Community House Inc","South Western Victoria","Barwon South West","SWV","BSW",6377,"006",null,"East End Community House",null,null,null,null,null,null,null,null,null,"Workforce Plus"]
[6378,"The Old Courthouse Committee of Mgt","The Old Courthouse Committee of Management Inc","South Western Victoria","Barwon South West","SWV","BSW",6378,"235",null,"Echuca Neighbourhood House",null,null,null,null,null,null,null,null,null,"Bass Coast Adult Learning"]
[6381,"Winchelsea Community House","Winchelsea Community House Incorporated","South Western Victoria","Barwon South West","SWV","BSW",6381,"262",null,"Elwood-St Kilda Neighbourhood Learning Ctr",null,null,null,null,null,null,null,null,null,"Foundation Learning Centre"]
[6389,"Angliss Neighbourhood House","Angliss Neighbourhood House Inc","South Western Victoria","North West Metropolitan","SWV","NWM",6389,"007",null,"Emerald Community House",null,null,null,null,null,null,null,null,null,"Buchan District Outreach"]
[6390,"Australian Romanian Comm Welfare","Australian Romanian Community Welfare, Health and Services Association of Victoria Inc","South Western Victoria","North West Metropolitan","SWV","NWM",6390,"013",null,"Encompass Community Services",null,null,null,null,null,null,null,null,null,"Life Skills Victoria"]
[6406,"Inclusion Melbourne","Inclusion Melbourne Inc","South Eastern Victoria","Southern Metropolitan","SEV","SMR",6406,"105",null,"Endeavour Hills Neighbourhood Centre"]
[6407,"Holden Street Neighbourhood House","Holden Street Neighbourhood House Inc","North Western Victoria","North West Metropolitan","NWV","NWM",6407,"102",null,"Euroa Health"]
[6408,"Laverton Community Integrated Services","Laverton Community Integrated Services Inc","South Western Victoria","North West Metropolitan","SWV","NWM",6408,"127",null,"Farnham Street N/hood Learning Centre"]
[6410,"North Melbourne Language & Learning","North Melbourne Language and Learning Inc","South Western Victoria","North West Metropolitan","SWV","NWM",6410,"169",null,"Fitzroy Learning Network"]
[6411,"Outlets Co-operative Neighbourhood House","Outlets Co-operative Neighbourhood House Limited","South Western Victoria","North West Metropolitan","SWV","NWM",6411,"178",null,"Footscray Community Arts Centre"]
[6412,"Southport Community Centre","Southport Community Centre Incorporated","South Eastern Victoria","Southern Metropolitan","SEV","SMR",6412,"217",null,"Foundation 61"]
[6414,"The South Kingsville Community Centre","The South Kingsville Community Centre Inc","South Western Victoria","North West Metropolitan","SWV","NWM",6414,"238",null,"Frankston City Council"]
[6419,"Wingate Avenue Community Centre","Wingate Avenue Community Centre Inc","South Western Victoria","North West Metropolitan","SWV","NWM",6419,"263",null,"Gateway Social Support Options"]
[6421,"Alamein Neighbourhood & Learning Centre","Alamein Neighbourhood & Learning Centre Inc","North Eastern Victoria","Eastern Metropolitan","NEV","EMR",6421,"002",null,"Geelong Ethnic Communities Council"]
[6425,"Clota Cottage Neighbourhood House","Clota Cottage Neighbourhood House Inc","North Eastern Victoria","Eastern Metropolitan","NEV","EMR",6425,"050",null,"Gippsland Employment Skills Training"]
[6428,"Emerald Community House","Emerald Community House Inc","South Eastern Victoria","Southern Metropolitan","SEV","SMR",6428,"076",null,"Glen Eira Adult Learning Centre"]
[6431,"Kew Neighbourhood Learning Centre","Kew Neighbourhood Learning Centre Inc","North Eastern Victoria","Eastern Metropolitan","NEV","EMR",6431,"118",null,"Glen Park Community Centre"]
[6433,"Mitcham Community House","Mitcham Community House Incorporated","North Eastern Victoria","Eastern Metropolitan","NEV","EMR",6433,"152",null,"Glenroy Neighbourhood Learning Centre"]
[6434,"North Ringwood Community House","North Ringwood Community House Incorporated","North Eastern Victoria","Eastern Metropolitan","NEV","EMR",6434,"170",null,"Godfrey Street Community House"]
[6436,"The Onemda Association","The Onemda Association Inc","North Eastern Victoria","Eastern Metropolitan","NEV","EMR",6436,"236",null,"Goldfields Employment & Learning Centre"]
[6437,"Vermont South Community House","Vermont South Community House Incorporated","North Eastern Victoria","Eastern Metropolitan","NEV","EMR",6437,"245",null,"Grampians Community Health "]
[6439,"Waverley Community Learning Centre","Waverley Community Learning Centre Inc","North Eastern Victoria","Eastern Metropolitan","NEV","EMR",6439,"254",null,"Great Ocean Road Health"]
[6462,"Noweyung","Noweyung Limited","South Eastern Victoria","Gippsland","SEV","GIPP",6462,"172",null,"Haddon Community Learning Centre"]
[6465,"Mallacoota District Health & Support Ser","Mallacoota District Health & Support Service Inc","South Eastern Victoria","Gippsland","SEV","GIPP",6465,"140",null,"Hallam Community Learning Centre"]
[6470,"Shepparton ACE Secondary College","Shepparton Adult and Community Education College Inc","North Eastern Victoria","Hume","NEV","HUME",6470,"211",null,"Hampton Community Centre"]
[6477,"Numurkah Community Learning Centre","Numurkah Community Learning Centre Inc.","North Eastern Victoria","Hume","NEV","HUME",6477,"173",null,"Hampton Park Care Group"]
[6489,"Kyneton Community & Learning Centre","Kyneton Community & Learning Centre Inc","North Western Victoria","Loddon Mallee","NWV","LMR",6489,"122",null,"Healesville Living & Learning Centre"]
[6490,"Wedderburn Community House","Wedderburn Community House Inc","North Western Victoria","Loddon Mallee","NWV","LMR",6490,"255",null,"Heyfield Community Resource Centre"]
[6492,"Sunraysia Mallee Ethnic Comm. Council","Sunraysia Mallee Ethnic Communities Council Inc","North Western Victoria","Loddon Mallee","NWV","LMR",6492,"225",null,"Holden Street Neighbourhood House"]
[6505,"Robinson Reserve Neighbourhood House","Reynard Street Neighbourhood House Incorporated","North Western Victoria","North West Metropolitan","NWV","NWM",6505,"198",null,"Horsham Community House"]
[6507,"Cheltenham Community Centre","Cheltenham Community Centre Inc.","South Eastern Victoria","Southern Metropolitan","SEV","SMR",6507,"045",null,"Hume City Council"]
[6510,"Cranbourne Community House","Cranbourne Community House Inc","South Eastern Victoria","Southern Metropolitan","SEV","SMR",6510,"063",null,"Inclusion Melbourne"]
[6511,"Glen Eira Adult Learning Centre","Glen Eira Adult Learning Centre Inc","South Eastern Victoria","Southern Metropolitan","SEV","SMR",6511,"089",null,"Inner Melbourne VET Cluster"]
[6512,"Hampton Park Care Group","Hampton Park Care Group Inc","South Eastern Victoria","Southern Metropolitan","SEV","SMR",6512,"099",null,"Japara Neighbourhood House"]
[6523,"S/vale Indo-Chinese Mutual Assist. Assoc","Springvale Indo-Chinese Mutual Assistance Association Inc","South Eastern Victoria","Southern Metropolitan","SEV","SMR",6523,"220",null,"Jesuit Social Services"]
[6542,"Churchill Neighbourhood Centre","Churchill Neighbourhood Centre Inc","South Eastern Victoria","Gippsland","SEV","GIPP",6542,"048",null,"Jewish Care (Victoria)"]
[6543,"Milpara Community House","Milpara Community House Inc","South Eastern Victoria","Gippsland","SEV","GIPP",6543,"151",null,"Jika Jika Community Centre"]
[6545,"Traralgon Neighbourhood Learning House","Traralgon Neighbourhood Learning House Inc.","South Eastern Victoria","Gippsland","SEV","GIPP",6545,"240",null,"JobCo Employment Services"]
[6899,"Encompass Community Services","Encompass Community Services Incorporated","South Western Victoria","Barwon South West","SWV","BSW",6899,"077",null,"Kangaroo Flat Community Group"]
[10556,"Banksia Gardens Association","Banksia Gardens Association Incorporated","North Western Victoria","North West Metropolitan","NWV","NWM",10556,"019",null,"Karingal St Laurence"]
[20003,"Arrabri Community House","Arrabri Community House Inc","North Eastern Victoria","Eastern Metropolitan","NEV","EMR",20003,"009",null,"Kensington Neighbourhood House"]
[20004,"Art Resource Collective","Art Resource Collective Inc","South Eastern Victoria","Gippsland","SEV","GIPP",20004,"010",null,"Kerang & District Community Centre"]
[20007,"Australian Croatian Community Services","Australian Croatian Community Services Inc","Cross Regional","North West Metropolitan","SWV","NWM",20007,"011",null,"Kerrie Neighbourhood House"]
[20008,"Aust. Multicultural Community Services","Australian Multicultural Community Services Inc","South Western Victoria","North West Metropolitan","SWV","NWM",20008,"012",null,"Kew Neighbourhood Learning Centre"]
[20012,"Ballan & District Community House & Adult Education Centre","Ballan & District Community House and Adult Education Centre Inc","South Western Victoria","Grampians","SWV","GRA",20012,"017",null,"King Valley Learning Exchange"]
[20019,"Belgium Avenue Neighbourhood House","Belgium Avenue Neighbourhood House Inc","North Western Victoria","North West Metropolitan","NWV","NWM",20019,"022",null,"Kinglake Ranges Neighbourhood House"]
[20021,"Bellarine Living & Learning Centre","Bellarine Living and Learning Centre Inc","South Western Victoria","Barwon South West","SWV","BSW",20021,"023",null,"Kyabram Community & Learning Centre"]
[20024,"Beulah Historical, Learning & Prog. Assoc.","Beulah Historical, Learning and Progress Association Inc","South Western Victoria","Grampians","SWV","GRA",20024,"028",null,"KYM (Victoria)"]
[20025,"Birallee Park Neighbourhood House","Birallee Park Neighbourhood House Inc","North Eastern Victoria","Hume","NEV","HUME",20025,"029",null,"Kyneton Community & Learning Centre"]
[20037,"Buchan District Outreach","Buchan District Outreach Inc","South Eastern Victoria","Gippsland","SEV","GIPP",20037,"036",null,"Lalor Living & Learning Centre"]
[20039,"Richmond Community Learning Centre","Richmond Community Learning Centre Inc","North Western Victoria","North West Metropolitan","NWV","NWM",20039,"199",null,"Langwarrin Community Centre"]
[20042,"Castlemaine Community House","Castlemaine Community House Inc","North Western Victoria","Loddon Mallee","NWV","LMR",20042,"039",null,"Lara Community Centre"]
[20045,"Central Ringwood Community Centre","Central Ringwood Community Centre Inc","North Eastern Victoria","Eastern Metropolitan","NEV","EMR",20045,"041",null,"Laverton Community Integrated Services"]
[20058,"Corinella & District Community Centre","Corinella & District Community Centre Inc","South Eastern Victoria","Gippsland","SEV","GIPP",20058,"060",null,"Link Health & Community"]
[20059,"Corryong Neighbourhood House","Corryong Neighbourhood House Inc","North Eastern Victoria","Hume","NEV","HUME",20059,"061",null,"LINK Neighbourhood House"]
[20062,"Dandenong Neighbourhood House","Dandenong Neighbourhood House Inc","South Eastern Victoria","Southern Metropolitan","SEV","SMR",20062,"065",null,"Living & Learning at Ajani"]
[20064,"Dingley Village Neighbourhood Centre","Dingley Village Neighbourhood Centre Inc","South Eastern Victoria","Southern Metropolitan","SEV","SMR",20064,"068",null,"Living Learning Pakenham"]
[20067,"Doveton Neighbourhood Learning Centre","Doveton Neighbourhood Learning Centre Inc","South Eastern Victoria","Southern Metropolitan","SEV","SMR",20067,"071",null,"Loddon Campaspe Multicultural Services"]
[20070,"Endeavour Hills Neighbourhood Centre","Endeavour Hills Neighbourhood Centre Inc","South Eastern Victoria","Southern Metropolitan","SEV","SMR",20070,"078",null,"Longbeach Place"]
[20075,"Manna Gum Community House","Manna Gum Community House Inc","South Eastern Victoria","Gippsland","SEV","GIPP",20075,"141",null,"Lyrebird Community Centre"]
[20083,"Glen Park Community Centre","Glen Park Community Centre Inc","North Eastern Victoria","Eastern Metropolitan","NEV","EMR",20083,"090",null,"Macedon Ranges Further Education Centre"]
[20084,"Godfrey Street Community House","Godfrey Street Community House Inc","South Eastern Victoria","Southern Metropolitan","SEV","SMR",20084,"092",null,"MADEC Australia"]
[20089,"Haddon Community Learning Centre","Haddon Community Learning Centre Inc","South Western Victoria","Grampians","SWV","GRA",20089,"096",null,"Maldon Neighbourhood Centre"]
[20090,"Hallam Community Learning Centre","Hallam Community Learning Centre Inc","South Eastern Victoria","Southern Metropolitan","SEV","SMR",20090,"097",null,"Mallacoota District Health & Support Ser"]
[20092,"Hampton Community Centre","Hampton Community Centre Inc","South Eastern Victoria","Southern Metropolitan","SEV","SMR",20092,"098",null,"Manna Gum Community House"]
[20095,"Heyfield Community Resource Centre","Heyfield Community Resource Centre Inc","South Eastern Victoria","Gippsland","SEV","GIPP",20095,"101",null,"Mansfield Adult Continuing Education"]
[20098,"Horsham Community House","Horsham Community House Inc","South Western Victoria","Grampians","SWV","GRA",20098,"103",null,"Meadow Heights Learning Shop"]
[20104,"Japara Neighbourhood House","Japara Neighbourhood House Inc","North Eastern Victoria","Eastern Metropolitan","NEV","EMR",20104,"107",null,"Melbourne City Mission"]
[20107,"Jika Jika Community Centre","Jika Jika Community Centre Inc","North Western Victoria","North West Metropolitan","NWV","NWM",20107,"110",null,"Melton South Community Centre"]
[20111,"LINK Neighbourhood House","LINK Neighbourhood House Inc","South Western Victoria","Grampians","SWV","GRA",20111,"130",null,"Meredith Community Centre"]
[20115,"King Valley Learning Exchange","King Valley Learning Exchange Inc.","North Eastern Victoria","Hume","NEV","HUME",20115,"119",null,"Merinda Park Learning & Community Centre"]
[20116,"Kinglake Ranges Neighbourhood House","Kinglake Ranges Neighbourhood House Inc","North Eastern Victoria","Hume","NEV","HUME",20116,"120",null,"Micare"]
[20120,"Lara Community Centre","Lara Community Centre Inc","South Western Victoria","Barwon South West","SWV","BSW",20120,"125",null,"Migrant Resource Centre, NW Region"]
[20131,"Lyrebird Community Centre","Lyrebird Community Centre Inc.","South Eastern Victoria","Southern Metropolitan","SEV","SMR",20131,"135",null,"MiLife-Victoria"]
[20132,"Maldon Neighbourhood Centre","Maldon Neighbourhood Centre Inc","North Western Victoria","Loddon Mallee","NWV","LMR",20132,"139",null,"Mill Park Community Services Group"]
[20140,"Melton South Community Centre","Melton South Community Centre Inc","South Western Victoria","North West Metropolitan","SWV","NWM",20140,"144",null,"Milpara Community House"]
[20141,"Meredith Community Centre","Meredith Community Centre Inc","South Western Victoria","Grampians","SWV","GRA",20141,"145",null,"Mitcham Community House"]
[20146,"Life Skills Victoria","Like Skills Victoria Inc","South Eastern Victoria","Gippsland","SEV","GIPP",20146,"153",null,"Moe Neighbourhood House"]
[20147,"Moe Neighbourhood House","Moe Neighbourhood House Inc","South Eastern Victoria","Gippsland","SEV","GIPP",20147,"154",null,"Moongala Women's Collective"]
[20149,"Moongala Women's Collective","Moongala Women's Collective Inc.","South Eastern Victoria","Southern Metropolitan","SEV","SMR",20149,"155",null,"Mordialloc Neighbourhood House"]
[20151,"Mordialloc Neighbourhood House","Mordialloc Neighbourhood House Inc","South Eastern Victoria","Southern Metropolitan","SEV","SMR",20151,"156",null,"Mount Beauty Neighbourhood Centre"]
[20153,"Mount Beauty Neighbourhood Centre","Mount Beauty Neighbourhood Centre Inc.","North Eastern Victoria","Hume","NEV","HUME",20153,"157",null,"Mount Eliza Neighbourhood House"]
[20155,"Ngwala Willumbong","Ngwala Willumbong Aboriginal Corporation","South Eastern Victoria","Southern Metropolitan","SEV","SMR",20155,"164",null,"Mountain District Women's Co-operative"]
[20156,"Noble Park Community Centre","Noble Park Community Centre Inc.","South Eastern Victoria","Southern Metropolitan","SEV","SMR",20156,"167",null,"Murray Adult Community Education"]
[20158,"The Centre: Connecting Community in NW-M","The Centre: Connecting Community In North & West Melbourne Inc","South Western Victoria","North West Metropolitan","SWV","NWM",20158,"233",null,"Murray Human Services"]
[20159,"N/Carlton Railway Station N/hood House","North Carlton Railway Station Neighbourhood House Inc.","North Western Victoria","North West Metropolitan","NWV","NWM",20159,"168",null,"Myrtleford Neighbourhood Centre"]
[20162,"Open Door Neighbourhood House","Open Door Neighbourhood House Inc","North Eastern Victoria","Hume","NEV","HUME",20162,"175",null,"N/Carlton Railway Station N/hood House"]
[20163,"Orana Neighbourhood House","Orana Neighbourhood House Inc.","North Eastern Victoria","Eastern Metropolitan","NEV","EMR",20163,"176",null,"N/Shepparton Community & Learning Centre"]
[20164,"Pangerang Community House","Pangerang Community House Inc.","North Eastern Victoria","Hume","NEV","HUME",20164,"180",null,"Ngwala Willumbong"]
[20166,"Paynesville Neighbourhood Centre","Paynesville Neighbourhood Centre Inc","South Eastern Victoria","Gippsland","SEV","GIPP",20166,"182",null,"Nhill Neighbourhood House Learning Ctr"]
[20167,"MiLife-Victoria","MiLife-Victoria Inc","South Eastern Victoria","Southern Metropolitan","SEV","SMR",20167,"149",null,"Nillumbik Shire Council"]
[20170,"Phillip Island Community & Learning Ctr","Phillip Island Community And Learning Centre Inc.","South Eastern Victoria","Gippsland","SEV","GIPP",20170,"184",null,"Noble Park Community Centre"]
[20173,"Port Fairy Community Group","Port Fairy Community Group Inc","South Western Victoria","Barwon South West","SWV","BSW",20173,"186",null,"North Melbourne Language & Learning"]
[20175,"Uniting (Victoria & Tasmania)","Uniting (Victoria and Tasmania) Limited","South Eastern Victoria","Southern Metropolitan","SEV","SMR",20175,"243",null,"North Ringwood Community House"]
[20176,"Preston Neighbourhood House","Preston Neighbourhood House Inc","North Western Victoria","North West Metropolitan","NWV","NWM",20176,"190",null,"Noweyung"]
[20179,"Quantin Binnah Community Centre","Quantin Binnah Community Centre Inc","South Western Victoria","North West Metropolitan","SWV","NWM",20179,"193",null,"Numurkah Community Learning Centre"]
[20187,"Rosewall Neighbourhood Centre","Rosewall Neighbourhood Centre Inc.","South Western Victoria","Barwon South West","SWV","BSW",20187,"202",null,"Olympic Adult Education"]
[20189,"Rushworth Community House","Rushworth Community House Inc","North Western Victoria","Loddon Mallee","NWV","LMR",20189,"205",null,"Open Door Neighbourhood House"]
[20192,"Sale Neighbourhood House","Sale Neighbourhood House Inc","South Eastern Victoria","Gippsland","SEV","GIPP",20192,"206",null,"Orana Neighbourhood House"]
[20197,"Simpson & District Community Centre","Simpson & District Community Centre Inc","South Western Victoria","Barwon South West","SWV","BSW",20197,"212",null,"Orbost Education Centre"]
[20199,"Sorrento Community Centre","Sorrento Community Centre Inc","South Eastern Victoria","Southern Metropolitan","SEV","SMR",20199,"213",null,"Outlets Co-operative Neighbourhood House"]
[20200,"South Shepparton Community Centre","South Shepparton Community Centre Inc","North Eastern Victoria","Hume","NEV","HUME",20200,"214",null,"Outlook (VIC)"]
[20201,"Span Community House","Span Community House Inc.","North Western Victoria","North West Metropolitan","NWV","NWM",20201,"218",null,"Pangerang Community House"]
[20202,"Springdale Neighbourhood Centre","Springdale Neighbourhood Centre Inc","South Western Victoria","Barwon South West","SWV","BSW",20202,"219",null,"Park Orchards Comm House"]
[20206,"Stawell Neighbourhood House","Stawell Neighbourhood House Inc","South Western Victoria","Grampians","SWV","GRA",20206,"224",null,"Paynesville Neighbourhood Centre"]
[20208,"Sussex Neighbourhood House","Sussex Neighbourhood House Inc","North Western Victoria","North West Metropolitan","NWV","NWM",20208,"227",null,"Peninsula Training & Employment Program"]
[20212,"Tatura Community House","Tatura Community House Inc","North Eastern Victoria","Hume","NEV","HUME",20212,"230",null,"Phillip Island Community & Learning Ctr"]
[20213,"Avenue Neighbourhood House at Eley","Avenue Neighbourhood House At Eley Inc.","North Eastern Victoria","Eastern Metropolitan","NEV","EMR",20213,"015",null,"Pines Learning"]
[20214,"The Basin Community House","The Basin Community House Inc","North Eastern Victoria","Eastern Metropolitan","NEV","EMR",20214,"231",null,"Port Fairy Community Group"]
[20215,"Hume City Council","Hume City Council","North Western Victoria","North West Metropolitan","NWV","NWM",20215,"104",null,"Port Phillip Community Group"]
[20222,"Trudewind Road Neighbourhood House","Trudewind Road Neighbourhood House Inc","North Eastern Victoria","Hume","NEV","HUME",20222,"241",null,"Portland Workskills"]
[20253,"Albury Wodonga Volunteer Resource Bureau","Albury-Wodonga Volunteer Resource Bureau Inc","North Eastern Victoria","Hume","NEV","HUME",20253,"004",null,"Prahran Community Learning Centre"]
[20257,"Waminda","Waminda Inc","North Eastern Victoria","Hume","NEV","HUME",20257,"250",null,"Preston Neighbourhood House"]
[20259,"Warracknabeal Neighbourhood House","Warracknabeal Neighbourhood House and Learning Centre Inc","South Western Victoria","Grampians","SWV","GRA",20259,"251",null,"Preston/Reservoir Adult Community Ed."]
[20260,"Warragul Community House","Warragul Community House Inc","South Eastern Victoria","Gippsland","SEV","GIPP",20260,"252",null,"Pyramid Hill Neighbourhood House"]
[20266,"Wellsprings For Women","Wellsprings For Women Incorporated","South Eastern Victoria","Southern Metropolitan","SEV","SMR",20266,"256",null,"Quantin Binnah Community Centre"]
[20274,"Wycheproof Community Resource Centre","Wycheproof Community Resource Centre Inc","North Western Victoria","Loddon Mallee","NWV","LMR",20274,"266",null,"Quantum Support Services"]
[20278,"Yarrunga Community Centre","Yarrunga Community Centre Inc","North Eastern Victoria","Eastern Metropolitan","NEV","EMR",20278,"270",null,"Red Cliffs Community Resource Centre"]
[20459,"Bellarine Training & Comm Hub","Bellarine Training and Community Hub Incorporated","South Western Victoria","Barwon South West","SWV","BSW",20459,"024",null,"Rejoice Christian Chinese Communication Centre"]
[20645,"Southern Grampians Adult Education","Southern Grampians Adult Education Inc","South Western Victoria","Barwon South West","SWV","BSW",20645,"215",null,"Resurrection Catholic Church Keysborough"]
[20909,"Port Phillip Community Group","Port Phillip Community Group Limited","South Eastern Victoria","Southern Metropolitan","SEV","SMR",20909,"187",null,"Richmond Community Learning Centre"]
[20982,"Nhill Neighbourhood House Learning Ctr","Nhill Neighbourhood House Learning Centre Inc.","South Western Victoria","Grampians","SWV","GRA",20982,"165",null,"Robinson Reserve Neighbourhood House"]
[21014,"JobCo Employment Services","JobCo Employment Services Inc","Cross Regional","North West Metropolitan","NWV","NWM",21014,"111",null,"Robinvale Network House"]
[21080,"Murray Human Services","Murray Human Services Inc","North Western Victoria","Loddon Mallee","NWV","LMR",21080,"161",null,"Rosewall Neighbourhood Centre"]
[21081,"Red Cliffs Community Resource Centre","Red Cliffs Community Resource Centre Inc","North Western Victoria","Loddon Mallee","NWV","LMR",21081,"195",null,"Rowville Neighbourhood Learning Centre"]
[21082,"Robinvale Network House","Robinvale Network House Inc","North Western Victoria","Loddon Mallee","NWV","LMR",21082,"200",null,"Rural Industries Skill Training Centre"]
[21109,"Orbost Education Centre","Orbost Education Centre Incorporated","South Eastern Victoria","Gippsland","SEV","GIPP",21109,"177",null,"Rushworth Community House"]
[21152,"St. Arnaud Neighbourhood House","St. Arnaud Neighbourhood House Inc","South Western Victoria","Grampians","SWV","GRA",21152,"223",null,"S/vale Indo-Chinese Mutual Assist. Assoc"]
[21163,"Cloverdale Community Centre","Cloverdale Community Centre Inc","South Western Victoria","Barwon South West","SWV","BSW",21163,"051",null,"Sale Neighbourhood House"]
[21177,"Goldfields Employment & Learning Centre","Goldfields Employment and Learning Centre Inc","North Western Victoria","Loddon Mallee","NWV","LMR",21177,"093",null,"Sandybeach Community Co-op Society"]
[21203,"VICSEG New Futures","VICSEG New Futures","North Western Victoria","North West Metropolitan","NWV","NWM",21203,"246",null,"SCAA Shearer Woolhandler Training"]
[21214,"Boort Resource and Info Centre","Boort Resource And Information Centre Inc","North Western Victoria","Loddon Mallee","NWV","LMR",21214,"031",null,"Selby Community House"]
[21215,"Echuca Neighbourhood House","Echuca Neighbourhood House Inc.","North Western Victoria","Loddon Mallee","NWV","LMR",21215,"074",null,"Shepparton Access"]
[21226,"Loddon Campaspe Multicultural Services","Loddon Campaspe Multicultural Services Inc","North Western Victoria","Loddon Mallee","NWV","LMR",21226,"133",null,"Shepparton ACE Secondary College"]
[21228,"Carlton Neighbourhood Learning Centre","Carlton Neighbourhood Learning Centre Inc","Cross Regional","North West Metropolitan","NWV","NWM",21228,"037",null,"Simpson & District Community Centre"]
[21250,"Bnym Aboriginal Corporation","Bnym Aboriginal Corporation","South Eastern Victoria","Gippsland","SEV","GIPP",21250,"030",null,"Sorrento Community Centre"]
[21349,"Beaufort Community House & Learning Ctr","Beaufort Community House and Learning Centre Inc","South Western Victoria","Grampians","SWV","GRA",21349,"021",null,"South Shepparton Community Centre"]
[21369,"Berry Street Victoria","Berry Street Victoria Incorporated","South Eastern Victoria","Gippsland","SEV","GIPP",21369,"027",null,"Southern Grampians Adult Education"]
[21527,"Kangaroo Flat Community Group","Kangaroo Flat Community Group Inc.","North Western Victoria","Loddon Mallee","NWV","LMR",21527,"113",null,"Southern Migrant & Refugee Centre"]
[21606,"Outlook (VIC)","Outlook (Vic.) Inc.","South Eastern Victoria","Southern Metropolitan","SEV","SMR",21606,"179",null,"Southport Community Centre"]
[21619,"Youth Projects","Youth Projects Limited","North Western Victoria","North West Metropolitan","NWV","NWM",21619,"272",null,"Span Community House"]
[21624,"Wendouree Neighbourhood Centre","Wendouree Neighbourhood Centre Inc","South Western Victoria","Grampians","SWV","GRA",21624,"257",null,"Springdale Neighbourhood Centre"]
[21644,"Whittlesea Community House","Whittlesea Community House Inc","North Western Victoria","North West Metropolitan","NWV","NWM",21644,"260",null,"Springvale Learning & Activities Centre"]
[21701,"Balance Training Services","Balance Training Services Pty Ltd","South Western Victoria","Barwon South West","SWV","BSW",21701,"016",null,"Springvale Neighbourhood House"]
[21732,"Inner Melbourne VET Cluster","Inner Melbourne VET Cluster Inc","Cross Regional","Southern Metropolitan","SEV","SMR",21732,"106",null,"St. Arnaud Neighbourhood House"]
[21765,"Yarrawonga Neighbourhood House","Yarrawonga Neighbourhood House Inc.","North Eastern Victoria","Hume","NEV","HUME",21765,"269",null,"Stawell Neighbourhood House"]
[21800,"Jesuit Social Services","Jesuit Social Services Limited","Cross Regional","North West Metropolitan","NWV","NWM",21800,"108",null,"Sunraysia Mallee Ethnic Comm. Council"]
[22203,"Farnham Street N/hood Learning Centre","Farnham Street Neighbourhood Learning Centre Inc","South Western Victoria","North West Metropolitan","SWV","NWM",22203,"080",null,"Sunraysia Regional Consulting"]
[22576,"Vic. Aboriginal Community Services Assoc","Victorian Aboriginal Community Services Association Limited","North Western Victoria","North West Metropolitan","NWV","NWM",22576,"247",null,"Sussex Neighbourhood House"]
[22594,"Australian Vietnamese Women's Assoc.","Australian Vietnamese Women's Association Inc","Cross Regional","North West Metropolitan","NWV","NWM",22594,"014",null,"Task Force Community Agency"]
[22596,"Migrant Resource Centre, NW Region","Migrant Resource Centre, North West Region Inc","South Western Victoria","North West Metropolitan","SWV","NWM",22596,"148",null,"Tatura Community House"]
[29502,"Rejoice Christian Chinese Communication Centre","Rejoice Chinese Christian Communications Centre Inc.","North Eastern Victoria","Eastern Metropolitan","NEV","EMR",29502,"196",null,"The Basin Community House"]
[29503,"Myrtleford Neighbourhood Centre","Myrtleford Neighbourhood Centre Inc","North Eastern Victoria","Hume","NEV","HUME",29503,"162",null,"The Centre for Continuing Education"]
[29504,"Rowville Neighbourhood Learning Centre","Rowville Neighbourhood Learning Centre Inc","North Eastern Victoria","Eastern Metropolitan","NEV","EMR",29504,"203",null,"The Centre: Connecting Community in NW-M"]
[29505,"YouthNow","YouthNow Inc","South Western Victoria","North West Metropolitan","SWV","NWM",29505,"273",null,"The Kevin Heinze Garden Centre"]
[29512,"Gateway Social Support Options","Gateway Social Support Options Inc.","South Western Victoria","North West Metropolitan","SWV","NWM",29512,"086",null,"The Old Courthouse Committee of Mgt"]
[29514,"East End Community House","East End Community House Inc.","North Western Victoria","Loddon Mallee","NWV","LMR",29514,"073",null,"The Onemda Association"]
[29515,"Living & Learning at Ajani","Living and Learning at Ajani Inc.","North Eastern Victoria","Eastern Metropolitan","NEV","EMR",29515,"131",null,"The South Kingsville Community Centre"]
[29516,"Jewish Care (Victoria)","Jewish Care (Victoria) Inc.","South Eastern Victoria","Southern Metropolitan","SEV","SMR",29516,"109",null,"Traralgon Neighbourhood Learning House"]
[29517,"Community Hub","Community Hub Inc","South Western Victoria","Barwon South West","SWV","BSW",29517,"056",null,"Trudewind Road Neighbourhood House"]
[29520,"Zoe Support Australia","Zoe Support Australia","North Western Victoria","Loddon Mallee","NWV","LMR",29520,"274",null,"Uniting (Victoria & Tasmania)"]
[29524,"Bendigo Neighbourhood Hub","Bendigo Neighbourhood Hub Inc.","North Western Victoria","Loddon Mallee","NWV","LMR",29524,"026",null,"Upper Beaconsfield Community Centre"]
[29525,"Kerang & District Community Centre","Kerang and District Community Centre Inc.","North Western Victoria","Loddon Mallee","NWV","LMR",29525,"116",null,"Vermont South Community House"]
[29526,"Mill Park Community Services Group","Mill Park Community Services Group Inc","North Western Victoria","North West Metropolitan","NWV","NWM",29526,"150",null,"Vic. Aboriginal Community Services Assoc"]
[29528,"The Kevin Heinze Garden Centre","The Kevin Heinze Garden Centre Incorporated","North Eastern Victoria","Eastern Metropolitan","NEV","EMR",29528,"234",null,"Vic. Vocational Rehabilitation Assoc"]
[29530,"Centre for Participation","Centre for Participation Inc","South Western Victoria","Grampians","SWV","GRA",29530,"043",null,"VICSEG New Futures"]
[29532,"Kerrie Neighbourhood House","Kerrie Neighbourhood House Inc","North Eastern Victoria","Eastern Metropolitan","NEV","EMR",29532,"117",null,"Victorian Deaf Society"]
[29533,"Quantum Support Services","Quantum Support Services Inc.","South Eastern Victoria","Gippsland","SEV","GIPP",29533,"194",null,"Waminda"]
[29534,"Micare","Micare Ltd","Cross Regional","Southern Metropolitan","SEV","SMR",29534,"147",null,"Warracknabeal Neighbourhood House"]
[29535,"Donald Learning Group","Donald Learning Group Inc.","North Western Victoria","Loddon Mallee","NWV","LMR",29535,"070",null,"Warragul Community House"]
[29537,"Frankston City Council","Frankston City Council","South Eastern Victoria","Southern Metropolitan","SEV","SMR",29537,"084",null,"Warrandyte Neighbourhood House"]
[29538,"Victorian Deaf Society","Victorian Deaf Society","South Western Victoria","North West Metropolitan","SWV","NWM",29538,"248",null,"Waverley Community Learning Centre"]
[29539,"Link Health & Community","Link Health and Community Limited","North Eastern Victoria","Eastern Metropolitan","NEV","EMR",29539,"129",null,"Wedderburn Community House"]
[29541,"Southern Migrant & Refugee Centre","Southern Migrant and Refugee Centre Inc","South Eastern Victoria","Southern Metropolitan","SEV","SMR",29541,"216",null,"Wellsprings For Women"]
[29542,"Grampians Community Health ","Grampians Community Health ","South Western Victoria","Grampians","SWV","GRA",29542,"094",null,"Wendouree Neighbourhood Centre"]
[29543,"Centre for Adult Education","Centre for Adult Education","Statewide","Statewide","STATEWIDE","STATEWIDE",29543,"042",null,"Westgate Community Initiatives Group"]
[29544,"Warrandyte Neighbourhood House","Warrandyte Neighbourhood House","North Eastern Victoria","Eastern Metropolitan","NEV","EMR",29544,"253",null,"Whittlesea Community Connections"]
[29545,"Lalor Living & Learning Centre","Lalor Living and Learning Centre Inc","North Western Victoria","North West Metropolitan","NWV","NWM",29545,"123",null,"Whittlesea Community House"]
[29546,"Pyramid Hill Neighbourhood House","Pyramid Hill Neighbourhood House","North Western Victoria","Loddon Mallee","NWV","LMR",29546,"192",null,"Williamstown Community & Education Ctr"]
[29547,"Whittlesea Community Connections","Whittlesea Community Connections Inc","North Western Victoria","North West Metropolitan","NWV","NWM",29547,"259",null,"Winchelsea Community House"]
[29548,"Sunraysia Regional Consulting","Sunraysia Regional Consulting Limited","North Western Victoria","Loddon Mallee","NWV","LMR",29548,"226",null,"Wingate Avenue Community Centre"]
[29549,"Christie Centre","Christie Centre Inc","North Western Victoria","Loddon Mallee","NWV","LMR",29549,"047",null,"Wonga Park Community Cottage"]
[29550,"Bubup Wilam for Early Learning","Bubup Wilam For Early Learning Inc","North Western Victoria","North West Metropolitan","NWV","NWM",29550,"035",null,"Workforce Plus"]
[29551,"Euroa Health","Euroa Health Inc","North Eastern Victoria","Hume","NEV","HUME",29551,"079",null,"Wycheproof Community Resource Centre"]
[29552,"Wonga Park Community Cottage","Wonga Park Community Cottage Inc","North Eastern Victoria","Eastern Metropolitan","NEV","EMR",29552,"264",null,"Wyndham Community & Education Centre"]
[29553,"Brotherhood of St Laurence","Brotherhood of St Laurence","Cross Regional","North West Metropolitan","NWV","NWM",29553,"095",null,"Yarraville Community Centre"]
[29554,"Elwood-St Kilda Neighbourhood Learning Ctr","Elwood-St Kilda Neighbourhood Learning Centre Inc","South Eastern Victoria","Southern Metropolitan","SEV","SMR",29554,"075",null,"Yarrawonga Neighbourhood House"]
[29555,"Foundation 61","Foundation 61 Inc.","South Western Victoria","Barwon South West","SWV","BSW",29555,"083",null,"Yarrunga Community Centre"]
[29556,"Healesville Living & Learning Centre","Healesville Living & Learning Centre Inc","North Eastern Victoria","Eastern Metropolitan","NEV","EMR",29556,"100",null,"Youth Projects"]
[29557,"Langwarrin Community Centre","Langwarrin Community Centre Inc","South Eastern Victoria","Southern Metropolitan","SEV","SMR",29557,"124",null,"YouthNow"]
[29558,"Shepparton Access","Shepparton Access","North Eastern Victoria","Hume","NEV","HUME",29558,"210",null,"Zoe Support Australia"]
[29559,"Springvale Learning & Activities Centre","Springvale Learning and Activities Centre Incorporated","South Eastern Victoria","Southern Metropolitan","SEV","SMR",29559,"221",null,"Bass Coast Adult Learning"]
[29560,"Ararat Neighbourhood House","Ararat Neighbourhood House Inc","South Western Victoria","Grampians","SWV","GRA",29560,"008",null,"Continuing Education & Arts Centre of Alexandra"]
[29561,"Footscray Community Arts Centre","Footscray Community Arts Centre Limited","South Western Victoria","North West Metropolitan","SWV","NWM",29561,"082",null,"Foundation Learning Centre"]
[29562,"Great Ocean Road Health","Great Ocean Road Health","South Western Victoria","Barwon South West","SWV","BSW",29562,"033",null,"Laurels Education and Training"]
[29564,"Prahran Community Learning Centre","Prahran Community Learning Centre Inc","South Eastern Victoria","Southern Metropolitan","SEV","SMR",29564,"189",null,"Ballan & District Community House & Adult Education Centre"]
[40580,"Melbourne City Mission","Melbourne City Mission","South Eastern Victoria","Southern Metropolitan","SEV","SMR",40580,"143",null,"Buchan District Outreach"]
[null,null,null,null,null,null,null,null,null,null,"Life Skills Victoria"]
[null,null,null,null,null,null,null,null,null,null,"Bubup Wilam for Early Learning"]

{"sheet":"Lookups","index":1,"n_rows":80,"n_cols":9,"rows_kept":80,"cut":false,"hidden":true,"merged":[]}
["LGA",null,"Cat","Prefix","Funding Code",null,"Partnership",null,"Mode"]
["Alpine",null,"Language","23LAN","ACE",null,"Industry",null,"Face to Face"]
["Ararat",null,"Literacy & Numeracy","23LLN","ACE",null,"School",null,"Online"]
["Ballarat",null,"Employability","23EMP","ACE",null,"Community agency",null,"Blended"]
["Banyule",null,"Vocational (Industry & Pathways)","23VOC","ACE",null,"Library"]
["Bass Coast",null,"Short module (5–15 hrs)","23SHM","ACE",null,"Other Learn Local",null,"Source"]
["Baw Baw",null,null,null,null,null,"TAFE",null,"Centrally developed"]
["Bayside",null,null,null,null,null,"Other",null,"Adapted centrally developed"]
["Benalla",null,"Cat","Prefix","Funding Code",null,"No partnership",null,"Locally developed"]
["Boroondara",null,"Digital Literacy Essentials","23DLE","AC2"]
["Brimbank",null,"Digital Skills for Employability ","23DSE","AC2"]
["Buloke",null,"Short module (5-15 hrs)","23DSM","AC2",null,null,null,"EOI Phase"]
["Campaspe",null,null,null,null,null,null,null,"Baseline"]
["Cardinia",null,null,null,null,null,null,null,"April"]
["Casey",null,null,null,null,null,null,null,"June"]
["Central Goldfields",null,null,null,null,null,null,null,"Other"]
["Colac-Otway"]
["Corangamite",null,null,null,null,null,null,null,"New/Existing"]
["Darebin",null,null,null,null,null,null,null,"New"]
["East Gippsland",null,null,null,null,null,null,null,"Existing"]
["Frankston"]
["Gannawarra",null,null,null,null,null,null,null,"Subject Plan"]
["Glen Eira",null,null,null,null,null,null,null,"Yes"]
["Glenelg",null,null,null,null,null,null,null,"No"]
["Golden Plains"]
["Greater Bendigo",null,null,null,null,null,null,null,"Terms"]
["Greater Dandenong",null,null,null,null,null,null,null,1]
["Greater Geelong",null,null,null,null,null,null,null,"1,2"]
["Greater Shepparton",null,null,null,null,null,null,null,"1,3"]
["Hepburn",null,null,null,null,null,null,null,"1,4"]
["Hindmarsh",null,null,null,null,null,null,null,"1,2,3"]
["Hobsons Bay",null,null,null,null,null,null,null,"1,2,3,4"]
["Horsham",null,null,null,null,null,null,null,2]
["Hume",null,null,null,null,null,null,null,"2,3"]
["Indigo",null,null,null,null,null,null,null,"2,4"]
["Kingston",null,null,null,null,null,null,null,"2,3,4"]
["Knox",null,null,null,null,null,null,null,3]
["Latrobe",null,null,null,null,null,null,null,"3,4"]
["Loddon",null,null,null,null,null,null,null,4]
["Macedon Ranges"]
["Manningham"]
["Mansfield "]
["Maribyrnong"]
["Maroondah"]
["Melbourne"]
["Melton"]
["Mildura"]
["Mitchell "]
["Moira "]
["Monash"]
["Moonee Valley"]
["Moorabool"]
["Moreland"]
["Mornington Peninsula"]
["Mount Alexander "]
["Moyne "]
["Murrindindi"]
["Nillumbik"]
["Northern Grampians"]
["Port Phillip"]
["Pyrenees"]
["Queenscliffe"]
["South Gippsland"]
["Southern Grampians"]
["Stonnington"]
["Strathbogie "]
["Surf Coast"]
["Swan Hill"]
["Towong"]
["Wangaratta"]
["Warrnambool"]
["Wellington"]
["West Wimmera"]
["Whitehorse"]
["Whittlesea"]
["Wodonga "]
["Wyndham "]
["Yarra"]
["Yarra Ranges"]
["Yarriambiack"]

{"sheet":"Guide","index":2,"n_rows":36,"n_cols":4,"rows_kept":36,"cut":false,"hidden":false,"merged":[[4,7,5,7],[4,3,7,3],[4,0,6,1],[22,3,24,3],[0,0,0,1]]}
["Guide to completing the 2023 Delivery Plan Expression of Interest"]
["The information below is a quick guide to completing the 2023 Delivery Plan EOI. For more detailed guidance, refer to the 2023 Pre-accredited Training Delivery Guidelines."]
[]
["Step 1: Insert your Learn Local details (Summary tab 2)"]
["Please note: The yellow boxes in the table at the top left corner of the Summary tab are the only information to be completed by the Learn Local. All other information on this tab has been automatically updated from the Delivery Plan worksheets and should not be changed. The tables on the right side of the Summary tab are for Department use only and should also not be updated by the Learn Local. "]
[]
[]
["Information required","What to enter"]
["Learn Local name","Select the name of your organisation from the drop-down menu. Once you have selected your Learn Local the DET region, ACFE region and TOID will be automatically updated."]
["Contact Person","Insert the name of the person to contact should the Department have any questions in relation to the EOI"]
["Contact phone","Insert the phone number of the contact person"]
["Contact e-mail","Insert the email address of the contact person"]
["Date Submitted","Insert the date that the EOI Delivery Plan is submitted to the Regional Office (due date 16 September)"]
["Delivery Plan Version No.","Insert 'draft' for the initial submission. This will be changed to Version 1 by the Regional Office on approval of your submission."]
[]
[]
["Step 2: Complete the Delivery Plan worksheets (tabs 3 and 4)"]
["Information required","What to enter"]
["LGA of delivery","Select the LGA from where the module will be delivered, using the drop down menu"]
["New/existing module (course)","If the module has been offered before 2023, select 'existing' from the drop down menu, otherwise select 'new'"]
["Source of module (course)","If the module has been:\n- centrally developed, select 'Centrally developed'\n- adapted from a centrally developed version to suit local need, select 'Adapted centrally developed'\n- entirely locally developed, select 'Locally developed'"]
["Module (course) plan developed","If a Course Plan has been developed for this Module, select 'yes' from the drop down menu, otherwise select 'no'",null,"Program category abbreviations for Module Code"]
["Module (course) code","If the module is locally developed or adapted from a centrally developed course, enter a local module code. \nThe code should be alphanumeric and up to 12 characters in length with no spaces. It should start with the year of delivery, followed by the abbreviated Program Category (see abbreviations in box at right) and abbreviated local name. \nFor example: 23EMP3STEPS = [year]2023, [program category]employability, [local name]3 Steps to Employment\nIf the module is centrally developed, enter the relevant module code from the Learn Local Secure Portal.",null,"General Pre-accredited\nLanguage (LAN)\nLiteracy/Numeracy (LLN)\nEmployability (EMP)\nVocational (VOC)\nGeneral PA Short Module (SHM)\nDigital Skills\nDigital Literacy Essentials (DLE)\nDigital Skills for Employability (DSE)\nDigital Short Module (DSM)"]
["Module (course) name","If the module is locally developed or adapted from a centrally developed module, enter the local module name.\nIf the module is centrally developed, enter the relevant module name from the Learn Local Secure Portal"]
["Program category","Select the most appropriate Program Category from the drop down menu. Where a short module (5-15 hours) in General Pre-accredited or Digital Skills also falls under one of the other categories, select Short Module."]
["Mode of delivery","Select the most appropriate mode of delivery for the module from the drop down menu"]
["Training partnership","If the module is being delivered as a partnership with another organisation, select from the drop down menu, otherwise select 'No partnership'. Where there is more than one training partner, select the most significant"]
["Terms of delivery","Enter the terms that your module will be delivered eg. 1,2,3,4 from the drop-down menu"]
["Module (course) SCH","Enter the number of student contact hours your module will deliver in 2023"]
["Total students","Enter the number of students that your module can accommodate in 2023"]
["Total SCH","No data entry required"]
["Total payment","No data entry required"]
[]
[]
["Step 3: Submit your 2023  Delivery Plan EOI"]
["Save the 2023 Delivery Plan EOI and send to training.participation@education.vic.gov.au by 16 September 2022"]

{"sheet":"Summary","index":3,"n_rows":23,"n_cols":18,"rows_kept":23,"cut":false,"hidden":false,"merged":[[20,12,20,17],[8,12,8,17],[3,12,4,17],[3,1,4,8],[6,21,6,22],[13,2,13,3],[14,2,14,3],[15,2,15,3],[11,2,11,3],[12,2,12,3],[6,2,6,4],[7,2,7,4],[8,2,8,4],[9,2,9,4]]}
[]
[null,"2023 Delivery Plan Summary"]
[null,"Version 3 - updated 26/9/2022"]
[null,"Please note: All tables on the left of this summary tab will be automatically updated as the delivery plan worksheets are populated.  \nOnly information in the yellow boxes should be manually entered or adjusted. The tables on the right side of this tab are for Department Use Only.",null,null,null,null,null,null,null,null,null,null,"Department Use Only - do not enter information in these tables"]
[]
[null,"Learn Local details",null,null,null,null,"Program Category Summary"]
[null,"Learn Local Name",null,null,null,null,null,"SCH","Payment",null,null,null,"2023 Contracted Totals"]
[null,"DET Region",{"$f":"IFERROR(VLOOKUP(C7,Table3[[#All],[Name]:[LL_Unique_ID]],5,FALSE),\"\")","v":""},null,null,null,"General Pre-accredited",{"$f":"SUM(H9:H13)","v":0},{"$f":"SUM(I9:I13)","v":0}]
[null,"ACFE Region",{"$f":"IFERROR(VLOOKUP(C7,Table3[[#All],[Name]:[LL_Unique_ID]],6,FALSE),\"\")","v":""},null,null,null,"Language",{"$f":"SUMIF(Tbl_PA[[#All],[Program \ncategory]],G9,Tbl_PA[[#All],[Total \nSCH ]])","v":0},{"$f":"SUMIF(Tbl_PA[Program \ncategory],G9,Tbl_PA[Total \npayment ])","v":0},null,null,null,"General Pre-accredited (ACE)"]
[null,"TOID",{"$f":"IFERROR(VLOOKUP(C7,Table3[[#All],[Name]:[LL_Unique_ID]],7,FALSE),\"\")","v":""},null,null,null,"Literacy & Numeracy",{"$f":"SUMIF(Tbl_PA[[#All],[Program \ncategory]],G10,Tbl_PA[[#All],[Total \nSCH ]])","v":0},{"$f":"SUMIF(Tbl_PA[[#All],[Program \ncategory]],G10,Tbl_PA[[#All],[Total \npayment ]])","v":0},null,null,null,"EOI phase","LGA","SCH","Payment","Approved date","Updated by"]
[null,"Learn Local to manually enter details in yellow boxes below",null,null,null,null,"Employability",{"$f":"SUMIF(Tbl_PA[[#All],[Program \ncategory]],G11,Tbl_PA[[#All],[Total \nSCH ]])","v":0},{"$f":"SUMIF(Tbl_PA[[#All],[Program \ncategory]],G11,Tbl_PA[[#All],[Total \npayment ]])","v":0}]
[null,"Contact Person",null,null,null,null,"Vocational (Industry & Pathways)",{"$f":"SUMIF(Tbl_PA[[#All],[Program \ncategory]],G12,Tbl_PA[[#All],[Total \nSCH ]])","v":0},{"$f":"SUMIF(Tbl_PA[[#All],[Program \ncategory]],G12,Tbl_PA[[#All],[Total \npayment ]])","v":0}]
[null,"Contact phone",null,null,null,null,"Short module (5–15 hrs)",{"$f":"SUMIF(Tbl_PA[[#All],[Program \ncategory]],G13,Tbl_PA[[#All],[Total \nSCH ]])","v":0},{"$f":"SUMIF(Tbl_PA[[#All],[Program \ncategory]],G13,Tbl_PA[[#All],[Total \npayment ]])","v":0}]
[null,"Contact e-mail",null,null,null,null,"Digital Skills",{"$f":"SUM(H15:H17)","v":0},{"$f":"SUM(I15:I17)","v":0}]
[null,"Date Submitted",null,null,null,null,"Digital Literacy Essentials",{"$f":"SUMIF(Tbl_DL[Program \ncategory],\"Digital Literacy Essentials\",Tbl_DL[Total \nSCH ])+SUMIF(Tbl_DL[Program \ncategory],\"Digital Essentials Level 2\",Tbl_DL[Total \nSCH ])+SUMIF(Tbl_DL[Program \ncategory],\"Digital Essentials Other\",Tbl_DL[Total \nSCH ])","v":0},{"$f":"SUMIF(Tbl_DL[Program \ncategory],\"Digital Literacy Essentials\",Tbl_DL[Total \npayment])+SUMIF(Tbl_DL[Program \ncategory],\"Digital Essentials Level 2\",Tbl_DL[Total \npayment])+SUMIF(Tbl_DL[Program \ncategory],\"Digital Essentials Other\",Tbl_DL[Total \npayment])","v":0}]
[null,"DP Version No.",null,null,null,null,"Digital Skills for Employability",{"$f":"SUMIF(Tbl_DL[Program \ncategory],\"Digital Skills for Employability \",Tbl_DL[Total \nSCH ])+SUMIF(Tbl_DL[Program \ncategory],\"Digital Skills for Employability Other\",Tbl_DL[Total \nSCH ])","v":0},{"$f":"SUMIF(Tbl_DL[Program \ncategory],\"Digital Skills for Employability \",Tbl_DL[Total \npayment])+SUMIF(Tbl_DL[Program \ncategory],\"Digital Skills for Employability Other\",Tbl_DL[Total \npayment])","v":0}]
[null,null,null,null,null,null,"Short module (5-15 hrs)",{"$f":"SUMIF(Tbl_DL[Program \ncategory],\"Short module (5-15 hrs)\",Tbl_DL[Total \nSCH ])+SUMIF(Tbl_DL[Program \ncategory],\"Digital Skills for Employability Other\",Tbl_DL[Total \nSCH ])","v":0},{"$f":"SUMIF(Tbl_DL[Program \ncategory],\"Short module (5-15 hrs)\",Tbl_DL[Total \npayment])+SUMIF(Tbl_DL[Program \ncategory],\"Digital Skills for Employability Other\",Tbl_DL[Total \npayment])","v":0}]
[]
[null,"Funding Source Summary by LGA"]
[]
[null,"General Pre-accredited (ACE)","SCH","Payment",null,null,"Digital Skills (AC2)","SCH","Payment",null,null,null,"Digital Skills (AC2)"]
[null,"(blank)",0,0,null,null,"(blank)",0,0,null,null,null,"EOI Phase","LGA","SCH","Payment","Approved date","Updated by"]
[null,"Total",0,0,null,null,"Total",0,0]

{"sheet":"GenPreAcc Worksheet","index":4,"n_rows":34,"n_cols":14,"rows_kept":34,"cut":false,"hidden":false,"merged":[[2,10,2,11],[3,10,3,11],[4,10,4,11],[5,10,5,11],[2,0,5,0]]}
["2023 General Pre-accredited Delivery Plan Worksheet"]
[]
["Click this button to insert additional modules (courses), if required",null,null,null,null,null,null,null,null,null,null,null,"Total \nSCH ","Total \npayment "]
[null,null,null,null,null,"These figures will be inserted by the Regional Office following approval of EOI",null,null,null,null,"Contracted totals",null,0,0]
[null,null,null,null,null,"These figures will be automatically updated from the table below",null,null,null,null,"Worksheet totals",null,{"$f":"SUM(Tbl_PA[Total \nSCH ])","v":0},{"$f":"SUM(Tbl_PA[Total \npayment ])","v":0}]
[null,null,null,null,null,"These figures show the variation between the contracted totals and the worksheet totals",null,null,null,null,"Variation",null,{"$f":"M4-M5","v":0},{"$f":"N4-N5","v":0}]
[null,null,null,null,null,"Note: The variation figures will be 0 or negative until the contracted amount is confirmed and entered"]
[null,null,null,null,null,"If red, the worksheet SCH is =>40 hours less than the contracted SCH"]
[]
["LGA of module (course) delivery","New/existing\nmodule (course)","Source of module (course)","Module (course) plan \ndeveloped","Module (course)\ncode","Module (course) name","Program \ncategory","Mode of \ndelivery ","Training \npartnership","Term/s of Delivery e.g. 1,2,3,4","Module (course)\nSCH","Total \nstudents","Total \nSCH ","Total \npayment "]
[null,null,null,null,null,null,null,null,null,null,null,null,{"$f":"Tbl_PA[[#This Row],[Total \nstudents]]*Tbl_PA[[#This Row],[Module (course)\nSCH]]","v":0},{"$f":"Tbl_PA[[#This Row],[Total \nSCH ]]*9.1","v":0}]
[null,null,null,null,null,null,null,null,null,null,null,null,{"$f":"Tbl_PA[[#This Row],[Total \nstudents]]*Tbl_PA[[#This Row],[Module (course)\nSCH]]","v":0},{"$f":"Tbl_PA[[#This Row],[Total \nSCH ]]*9.1","v":0}]
[null,null,null,null,null,null,null,null,null,null,null,null,{"$f":"Tbl_PA[[#This Row],[Total \nstudents]]*Tbl_PA[[#This Row],[Module (course)\nSCH]]","v":0},{"$f":"Tbl_PA[[#This Row],[Total \nSCH ]]*9.1","v":0}]
[null,null,null,null,null,null,null,null,null,null,null,null,{"$f":"Tbl_PA[[#This Row],[Total \nstudents]]*Tbl_PA[[#This Row],[Module (course)\nSCH]]","v":0},{"$f":"Tbl_PA[[#This Row],[Total \nSCH ]]*9.1","v":0}]
[null,null,null,null,null,null,null,null,null,null,null,null,{"$f":"Tbl_PA[[#This Row],[Total \nstudents]]*Tbl_PA[[#This Row],[Module (course)\nSCH]]","v":0},{"$f":"Tbl_PA[[#This Row],[Total \nSCH ]]*9.1","v":0}]
[null,null,null,null,null,null,null,null,null,null,null,null,{"$f":"Tbl_PA[[#This Row],[Total \nstudents]]*Tbl_PA[[#This Row],[Module (course)\nSCH]]","v":0},{"$f":"Tbl_PA[[#This Row],[Total \nSCH ]]*9.1","v":0}]
[null,null,null,null,null,null,null,null,null,null,null,null,{"$f":"Tbl_PA[[#This Row],[Total \nstudents]]*Tbl_PA[[#This Row],[Module (course)\nSCH]]","v":0},{"$f":"Tbl_PA[[#This Row],[Total \nSCH ]]*9.1","v":0}]
[null,null,null,null,null,null,null,null,null,null,null,null,{"$f":"Tbl_PA[[#This Row],[Total \nstudents]]*Tbl_PA[[#This Row],[Module (course)\nSCH]]","v":0},{"$f":"Tbl_PA[[#This Row],[Total \nSCH ]]*9.1","v":0}]
[null,null,null,null,null,null,null,null,null,null,null,null,{"$f":"Tbl_PA[[#This Row],[Total \nstudents]]*Tbl_PA[[#This Row],[Module (course)\nSCH]]","v":0},{"$f":"Tbl_PA[[#This Row],[Total \nSCH ]]*9.1","v":0}]
[null,null,null,null,null,null,null,null,null,null,null,null,{"$f":"Tbl_PA[[#This Row],[Total \nstudents]]*Tbl_PA[[#This Row],[Module (course)\nSCH]]","v":0},{"$f":"Tbl_PA[[#This Row],[Total \nSCH ]]*9.1","v":0}]
[null,null,null,null,null,null,null,null,null,null,null,null,{"$f":"Tbl_PA[[#This Row],[Total \nstudents]]*Tbl_PA[[#This Row],[Module (course)\nSCH]]","v":0},{"$f":"Tbl_PA[[#This Row],[Total \nSCH ]]*9.1","v":0}]
[null,null,null,null,null,null,null,null,null,null,null,null,{"$f":"Tbl_PA[[#This Row],[Total \nstudents]]*Tbl_PA[[#This Row],[Module (course)\nSCH]]","v":0},{"$f":"Tbl_PA[[#This Row],[Total \nSCH ]]*9.1","v":0}]
[null,null,null,null,null,null,null,null,null,null,null,null,{"$f":"Tbl_PA[[#This Row],[Total \nstudents]]*Tbl_PA[[#This Row],[Module (course)\nSCH]]","v":0},{"$f":"Tbl_PA[[#This Row],[Total \nSCH ]]*9.1","v":0}]
[null,null,null,null,null,null,null,null,null,null,null,null,{"$f":"Tbl_PA[[#This Row],[Total \nstudents]]*Tbl_PA[[#This Row],[Module (course)\nSCH]]","v":0},{"$f":"Tbl_PA[[#This Row],[Total \nSCH ]]*9.1","v":0}]
[null,null,null,null,null,null,null,null,null,null,null,null,{"$f":"Tbl_PA[[#This Row],[Total \nstudents]]*Tbl_PA[[#This Row],[Module (course)\nSCH]]","v":0},{"$f":"Tbl_PA[[#This Row],[Total \nSCH ]]*9.1","v":0}]
[null,null,null,null,null,null,null,null,null,null,null,null,{"$f":"Tbl_PA[[#This Row],[Total \nstudents]]*Tbl_PA[[#This Row],[Module (course)\nSCH]]","v":0},{"$f":"Tbl_PA[[#This Row],[Total \nSCH ]]*9.1","v":0}]
[null,null,null,null,null,null,null,null,null,null,null,null,{"$f":"Tbl_PA[[#This Row],[Total \nstudents]]*Tbl_PA[[#This Row],[Module (course)\nSCH]]","v":0},{"$f":"Tbl_PA[[#This Row],[Total \nSCH ]]*9.1","v":0}]
[null,null,null,null,null,null,null,null,null,null,null,null,{"$f":"Tbl_PA[[#This Row],[Total \nstudents]]*Tbl_PA[[#This Row],[Module (course)\nSCH]]","v":0},{"$f":"Tbl_PA[[#This Row],[Total \nSCH ]]*9.1","v":0}]
[null,null,null,null,null,null,null,null,null,null,null,null,{"$f":"Tbl_PA[[#This Row],[Total \nstudents]]*Tbl_PA[[#This Row],[Module (course)\nSCH]]","v":0},{"$f":"Tbl_PA[[#This Row],[Total \nSCH ]]*9.1","v":0}]
[null,null,null,null,null,null,null,null,null,null,null,null,{"$f":"Tbl_PA[[#This Row],[Total \nstudents]]*Tbl_PA[[#This Row],[Module (course)\nSCH]]","v":0},{"$f":"Tbl_PA[[#This Row],[Total \nSCH ]]*9.1","v":0}]
[null,null,null,null,null,null,null,null,null,null,null,null,{"$f":"Tbl_PA[[#This Row],[Total \nstudents]]*Tbl_PA[[#This Row],[Module (course)\nSCH]]","v":0},{"$f":"Tbl_PA[[#This Row],[Total \nSCH ]]*9.1","v":0}]
[null,null,null,null,null,null,null,null,null,null,null,null,{"$f":"Tbl_PA[[#This Row],[Total \nstudents]]*Tbl_PA[[#This Row],[Module (course)\nSCH]]","v":0},{"$f":"Tbl_PA[[#This Row],[Total \nSCH ]]*9.1","v":0}]
[null,null,null,null,null,null,null,null,null,null,null,null,{"$f":"Tbl_PA[[#This Row],[Total \nstudents]]*Tbl_PA[[#This Row],[Module (course)\nSCH]]","v":0},{"$f":"Tbl_PA[[#This Row],[Total \nSCH ]]*9.1","v":0}]
[null,null,null,null,null,null,null,null,null,null,null,null,{"$f":"Tbl_PA[[#This Row],[Total \nstudents]]*Tbl_PA[[#This Row],[Module (course)\nSCH]]","v":0},{"$f":"Tbl_PA[[#This Row],[Total \nSCH ]]*9.1","v":0}]

{"sheet":"Digital Worksheet","index":5,"n_rows":34,"n_cols":14,"rows_kept":34,"cut":false,"hidden":false,"merged":[[3,10,3,11],[4,10,4,11],[5,10,5,11],[2,0,5,0]]}
["2023 Digital Skills Delivery Plan worksheet"]
[]
["Click this button to insert additional modules (courses), if required",null,null,null,null,null,null,null,null,null,null,null,"Total \nSCH ","Total \npayment "]
[null,null,null,null,null,"These amounts will be inserted by the Regional Office following approval of EOI",null,null,null,null,"Contracted",null,0,0]
[null,null,null,null,null,"These amounts will be automatically updated from the table below",null,null,null,null,"Worksheet",null,{"$f":"SUM(Tbl_DL[Total \nSCH ])","v":0},{"$f":"SUM(Tbl_DL[Total \npayment])","v":0}]
[null,null,null,null,null,"These amounts show the variation between the contracted totals and the worksheet totals",null,null,null,null,"Variation",null,{"$f":"M4-M5","v":0},{"$f":"N4-N5","v":0}]
[null,null,null,null,null,"Note: The variation figures will be 0 or negative until the contracted amount is confirmed and entered"]
[null,null,null,null,null,"If red, the worksheet SCH is =>40 hours less than the contracted SCH"]
[]
["LGA of module (course) delivery","New/existing\nmodule (course)","Source of module (course)","Module (course) plan \ndeveloped","Module (course)\ncode","Module (course) name","Program \ncategory","Mode of \ndelivery ","Training \npartnership","Term/s of delivery","Module (course)\nSCH","Total \nstudents","Total \nSCH ","Total \npayment"]
[null,null,null,null,null,null,null,null,null,null,null,null,{"$f":"Tbl_DL[[#This Row],[Total \nstudents]]*Tbl_DL[[#This Row],[Module (course)\nSCH]]","v":0},{"$f":"Tbl_DL[[#This Row],[Total \nSCH ]]*9.1","v":0}]
[null,null,null,null,null,null,null,null,null,null,null,null,{"$f":"Tbl_DL[[#This Row],[Total \nstudents]]*Tbl_DL[[#This Row],[Module (course)\nSCH]]","v":0},{"$f":"Tbl_DL[[#This Row],[Total \nSCH ]]*9.1","v":0}]
[null,null,null,null,null,null,null,null,null,null,null,null,{"$f":"Tbl_DL[[#This Row],[Total \nstudents]]*Tbl_DL[[#This Row],[Module (course)\nSCH]]","v":0},{"$f":"Tbl_DL[[#This Row],[Total \nSCH ]]*9.1","v":0}]
[null,null,null,null,null,null,null,null,null,null,null,null,{"$f":"Tbl_DL[[#This Row],[Total \nstudents]]*Tbl_DL[[#This Row],[Module (course)\nSCH]]","v":0},{"$f":"Tbl_DL[[#This Row],[Total \nSCH ]]*9.1","v":0}]
[null,null,null,null,null,null,null,null,null,null,null,null,{"$f":"Tbl_DL[[#This Row],[Total \nstudents]]*Tbl_DL[[#This Row],[Module (course)\nSCH]]","v":0},{"$f":"Tbl_DL[[#This Row],[Total \nSCH ]]*9.1","v":0}]
[null,null,null,null,null,null,null,null,null,null,null,null,{"$f":"Tbl_DL[[#This Row],[Total \nstudents]]*Tbl_DL[[#This Row],[Module (course)\nSCH]]","v":0},{"$f":"Tbl_DL[[#This Row],[Total \nSCH ]]*9.1","v":0}]
[null,null,null,null,null,null,null,null,null,null,null,null,{"$f":"Tbl_DL[[#This Row],[Total \nstudents]]*Tbl_DL[[#This Row],[Module (course)\nSCH]]","v":0},{"$f":"Tbl_DL[[#This Row],[Total \nSCH ]]*9.1","v":0}]
[null,null,null,null,null,null,null,null,null,null,null,null,{"$f":"Tbl_DL[[#This Row],[Total \nstudents]]*Tbl_DL[[#This Row],[Module (course)\nSCH]]","v":0},{"$f":"Tbl_DL[[#This Row],[Total \nSCH ]]*9.1","v":0}]
[null,null,null,null,null,null,null,null,null,null,null,null,{"$f":"Tbl_DL[[#This Row],[Total \nstudents]]*Tbl_DL[[#This Row],[Module (course)\nSCH]]","v":0},{"$f":"Tbl_DL[[#This Row],[Total \nSCH ]]*9.1","v":0}]
[null,null,null,null,null,null,null,null,null,null,null,null,{"$f":"Tbl_DL[[#This Row],[Total \nstudents]]*Tbl_DL[[#This Row],[Module (course)\nSCH]]","v":0},{"$f":"Tbl_DL[[#This Row],[Total \nSCH ]]*9.1","v":0}]
[null,null,null,null,null,null,null,null,null,null,null,null,{"$f":"Tbl_DL[[#This Row],[Total \nstudents]]*Tbl_DL[[#This Row],[Module (course)\nSCH]]","v":0},{"$f":"Tbl_DL[[#This Row],[Total \nSCH ]]*9.1","v":0}]
[null,null,null,null,null,null,null,null,null,null,null,null,{"$f":"Tbl_DL[[#This Row],[Total \nstudents]]*Tbl_DL[[#This Row],[Module (course)\nSCH]]","v":0},{"$f":"Tbl_DL[[#This Row],[Total \nSCH ]]*9.1","v":0}]
[null,null,null,null,null,null,null,null,null,null,null,null,{"$f":"Tbl_DL[[#This Row],[Total \nstudents]]*Tbl_DL[[#This Row],[Module (course)\nSCH]]","v":0},{"$f":"Tbl_DL[[#This Row],[Total \nSCH ]]*9.1","v":0}]
[null,null,null,null,null,null,null,null,null,null,null,null,{"$f":"Tbl_DL[[#This Row],[Total \nstudents]]*Tbl_DL[[#This Row],[Module (course)\nSCH]]","v":0},{"$f":"Tbl_DL[[#This Row],[Total \nSCH ]]*9.1","v":0}]
[null,null,null,null,null,null,null,null,null,null,null,null,{"$f":"Tbl_DL[[#This Row],[Total \nstudents]]*Tbl_DL[[#This Row],[Module (course)\nSCH]]","v":0},{"$f":"Tbl_DL[[#This Row],[Total \nSCH ]]*9.1","v":0}]
[null,null,null,null,null,null,null,null,null,null,null,null,{"$f":"Tbl_DL[[#This Row],[Total \nstudents]]*Tbl_DL[[#This Row],[Module (course)\nSCH]]","v":0},{"$f":"Tbl_DL[[#This Row],[Total \nSCH ]]*9.1","v":0}]
[null,null,null,null,null,null,null,null,null,null,null,null,{"$f":"Tbl_DL[[#This Row],[Total \nstudents]]*Tbl_DL[[#This Row],[Module (course)\nSCH]]","v":0},{"$f":"Tbl_DL[[#This Row],[Total \nSCH ]]*9.1","v":0}]
[null,null,null,null,null,null,null,null,null,null,null,null,{"$f":"Tbl_DL[[#This Row],[Total \nstudents]]*Tbl_DL[[#This Row],[Module (course)\nSCH]]","v":0},{"$f":"Tbl_DL[[#This Row],[Total \nSCH ]]*9.1","v":0}]
[null,null,null,null,null,null,null,null,null,null,null,null,{"$f":"Tbl_DL[[#This Row],[Total \nstudents]]*Tbl_DL[[#This Row],[Module (course)\nSCH]]","v":0},{"$f":"Tbl_DL[[#This Row],[Total \nSCH ]]*9.1","v":0}]
[null,null,null,null,null,null,null,null,null,null,null,null,{"$f":"Tbl_DL[[#This Row],[Total \nstudents]]*Tbl_DL[[#This Row],[Module (course)\nSCH]]","v":0},{"$f":"Tbl_DL[[#This Row],[Total \nSCH ]]*9.1","v":0}]
[null,null,null,null,null,null,null,null,null,null,null,null,{"$f":"Tbl_DL[[#This Row],[Total \nstudents]]*Tbl_DL[[#This Row],[Module (course)\nSCH]]","v":0},{"$f":"Tbl_DL[[#This Row],[Total \nSCH ]]*9.1","v":0}]
[null,null,null,null,null,null,null,null,null,null,null,null,{"$f":"Tbl_DL[[#This Row],[Total \nstudents]]*Tbl_DL[[#This Row],[Module (course)\nSCH]]","v":0},{"$f":"Tbl_DL[[#This Row],[Total \nSCH ]]*9.1","v":0}]
[null,null,null,null,null,null,null,null,null,null,null,null,{"$f":"Tbl_DL[[#This Row],[Total \nstudents]]*Tbl_DL[[#This Row],[Module (course)\nSCH]]","v":0},{"$f":"Tbl_DL[[#This Row],[Total \nSCH ]]*9.1","v":0}]
[null,null,null,null,null,null,null,null,null,null,null,null,{"$f":"Tbl_DL[[#This Row],[Total \nstudents]]*Tbl_DL[[#This Row],[Module (course)\nSCH]]","v":0},{"$f":"Tbl_DL[[#This Row],[Total \nSCH ]]*9.1","v":0}]